bitfinex/quotes_BTCUSD_20241020
["timestamp","ask_amount","ask_price","bid_price","bid_amount"]
[1729456361031,0.40604218,68683.0,68682.0,1.44238428]
[1729456361473,0.30414166,68683.0,68682.0,1.44238428]
[1729456362507,0.30414166,68683.0,68682.0,1.44403828]
[1729456363142,0.26044618,68683.0,68682.0,1.44403828]
[1729456363355,0.30414166,68683.0,68682.0,1.44403828]
[1729456363993,0.31779871,68683.0,68682.0,1.44403828]
[1729456366060,0.30414166,68683.0,68682.0,1.433154]
[1729456366412,0.3177991,68683.0,68682.0,1.433154]
[1729456366961,0.31780574,68683.0,68682.0,1.433154]
[1729456369740,0.31780594,68683.0,68682.0,1.433154]
[1729456371735,0.27410382,68683.0,68682.0,1.433154]
[1729456372150,0.26044618,68683.0,68682.0,1.433154]
[1729456372349,0.3041483,68683.0,68682.0,1.433154]
[1729456372554,0.26044618,68683.0,68682.0,1.433154]
[1729456373303,0.3041483,68683.0,68682.0,1.433154]
[1729456376423,0.30414935,68683.0,68682.0,1.433154]
[1729456376947,0.30414889,68683.0,68682.0,1.433154]
[1729456378725,0.30414889,68683.0,68682.0,1.512654]
[1729456379166,0.30414889,68683.0,68682.0,1.66161315]
[1729456379396,0.01148703,68683.0,68682.0,1.606454]
[1729456379621,0.01148703,68683.0,68682.0,1.61528684]
[1729456379827,0.01148703,68683.0,68682.0,1.606454]
[1729456395256,0.11148703,68683.0,68682.0,1.606454]
[1729456396795,0.11148703,68683.0,68682.0,1.76424421]
[1729456397446,0.003,68683.0,68682.0,1.61528506]
[1729456397676,0.003,68683.0,68682.0,1.606454]
[1729456397891,0.003,68683.0,68682.0,1.61528449]
[1729456403964,0.003,68683.0,68682.0,1.606454]
[1729456404176,0.003,68683.0,68682.0,1.61528345]
[1729456405462,0.003,68683.0,68682.0,1.61528414]
[1729456409622,0.003,68683.0,68682.0,1.61528535]
[1729456419495,0.003,68683.0,68682.0,1.7642445]
[1729456420637,0.003,68683.0,68682.0,1.61528535]
[1729456421709,0.04450702,68688.0,68682.0,1.61528535]
[1729456421918,0.1,68687.0,68683.0,0.00883135]
[1729456422118,0.10818265,68687.0,68684.0,1.4315]
[1729456424422,0.11218265,68687.0,68684.0,1.4315]
[1729456426537,0.11218265,68687.0,68685.0,0.01088627]
[1729456426747,0.11218265,68687.0,68686.0,0.01088627]
[1729456427392,0.10818265,68687.0,68684.0,1.4315]
[1729456427615,0.10818265,68687.0,68686.0,0.01088672]
[1729456428043,0.11318265,68687.0,68686.0,0.01088672]
[1729456428479,0.10818265,68687.0,68686.0,0.01088672]
[1729456428697,0.11318265,68687.0,68686.0,0.02072201]
[1729456428938,0.11318265,68687.0,68686.0,0.02072203]
[1729456429155,0.11318265,68687.0,68686.0,0.01188672]
[1729456430290,0.11318265,68687.0,68686.0,1.44338672]
[1729456430926,0.11318265,68687.0,68686.0,1.4325]
[1729456431145,0.11318265,68687.0,68686.0,1.44338735]
[1729456432266,0.11318265,68687.0,68686.0,1.4325]
[1729456432512,0.11318265,68687.0,68686.0,1.44338712]
[1729456436027,0.11318265,68687.0,68686.0,1.44338617]
[1729456439507,0.11318265,68687.0,68686.0,1.4325]
[1729456439930,0.11318265,68687.0,68686.0,1.44338607]
[1729456442053,0.11318265,68687.0,68686.0,1.4325]
[1729456442275,0.11318265,68687.0,68686.0,1.44338599]
[1729456447842,0.11318265,68687.0,68686.0,1.53638599]
[1729456449182,0.11318265,68687.0,68686.0,1.53638405]
[1729456452483,0.11318265,68687.0,68686.0,1.5255]
[1729456454374,0.11318265,68687.0,68686.0,1.53638283]
[1729456455462,0.11318265,68687.0,68686.0,1.53803883]
[1729456456376,0.11318265,68687.0,68686.0,1.527156]
[1729456456595,0.11318265,68687.0,68686.0,1.5380395]
[1729456458762,0.1,68690.0,68686.0,1.53803998]
[1729456458990,0.00763878,68687.0,68686.0,1.53803998]
[1729456459212,0.145584,68689.0,68686.0,1.53803947]
[1729456459417,0.145584,68689.0,68687.0,0.01088347]
[1729456459418,0.00763839,68688.0,68687.0,0.01088347]
[1729456459653,0.00763839,68688.0,68687.0,1.44238347]
[1729456461190,0.1,68689.0,68687.0,1.44238347]
[1729456461410,0.00763878,68688.0,68687.0,1.4325]
[1729456461627,0.00763878,68688.0,68687.0,1.44338335]
[1729456462297,0.00763878,68688.0,68687.0,1.44238335]
[1729456463802,0.00763878,68688.0,68687.0,1.44338335]
[1729456464223,0.00763878,68688.0,68687.0,1.44238335]
[1729456464669,0.00763878,68688.0,68687.0,1.44338335]
[1729456465143,0.00763878,68688.0,68687.0,1.51888335]
[1729456465367,0.00763878,68688.0,68687.0,1.508]
[1729456465585,0.00763878,68688.0,68687.0,1.51888314]
[1729456467146,0.10763878,68688.0,68687.0,1.51888314]
[1729456468002,0.10846678,68688.0,68687.0,1.51888314]
[1729456468524,0.10846678,68688.0,68687.0,1.508]
[1729456468752,0.10846678,68688.0,68687.0,1.51888271]
[1729456471120,0.25405178,68688.0,68687.0,1.51888271]
[1729456471360,0.29774658,68688.0,68687.0,1.51888271]
[1729456474616,0.15216158,68688.0,68687.0,1.51888271]
[1729456474903,0.29774658,68688.0,68687.0,1.51888271]
[1729456475932,0.29774658,68688.0,68687.0,1.508]
[1729456476159,0.25405178,68688.0,68687.0,1.51888209]
[1729456477839,0.29774769,68688.0,68687.0,1.51888209]
[1729456478258,0.25405178,68688.0,68687.0,1.51888209]
[1729456478463,0.29774734,68688.0,68687.0,1.51888209]
[1729456478892,0.25405178,68688.0,68687.0,1.51888209]
[1729456479538,0.25405178,68688.0,68687.0,1.508]
[1729456479722,0.25405178,68688.0,68687.0,1.51788193]
[1729456479977,0.25405178,68688.0,68687.0,1.507]
[1729456480432,0.25405178,68688.0,68687.0,1.51788188]
[1729456480639,0.29774644,68688.0,68687.0,1.51788188]
[1729456483427,0.29774644,68688.0,68687.0,1.51788151]
[1729456484960,0.25405178,68688.0,68687.0,1.51788151]
[1729456485610,0.29774522,68688.0,68687.0,1.51788151]
[1729456486220,0.25405178,68688.0,68687.0,1.51788151]
[1729456486881,0.29774472,68688.0,68687.0,1.51788151]
[1729456487097,0.29774472,68688.0,68687.0,1.507]
[1729456487533,0.29774472,68688.0,68687.0,1.5178817]
[1729456489751,0.25405178,68688.0,68687.0,1.5178817]
[1729456489971,0.297744,68688.0,68687.0,1.5178817]
[1729456490174,0.297744,68688.0,68687.0,1.5195377]
[1729456490614,0.25405178,68688.0,68687.0,1.5195377]
[1729456490831,0.29774463,68688.0,68687.0,1.5195377]
[1729456492982,0.25405178,68688.0,68687.0,1.5195377]
[1729456493445,0.29774432,68688.0,68687.0,1.5195377]
[1729456493650,0.25405178,68688.0,68687.0,1.5195377]
[1729456493853,0.29774419,68688.0,68687.0,1.5195377]
[1729456494529,0.25405178,68688.0,68687.0,1.508656]
[1729456494754,0.29774401,68688.0,68687.0,1.508656]
[1729456494940,0.25405178,68688.0,68687.0,1.51953833]
[1729456495378,0.29774423,68688.0,68687.0,1.51953833]
[1729456495657,0.29774376,68688.0,68687.0,1.51953833]
[1729456499582,0.29774471,68688.0,68687.0,1.51953833]
[1729456500914,0.25405178,68688.0,68687.0,1.51953833]
[1729456501134,0.25405178,68688.0,68687.0,1.508656]
[1729456501353,0.29774471,68688.0,68687.0,1.51953918]
[1729456501744,0.29774471,68688.0,68687.0,1.51953956]
[1729456503346,0.25405178,68688.0,68687.0,1.51953956]
[1729456503563,0.29774471,68688.0,68687.0,1.51953956]
[1729456504453,0.29774471,68688.0,68687.0,1.508656]
[1729456504682,0.25405178,68688.0,68687.0,1.508656]
[1729456504920,0.25405178,68688.0,68687.0,1.51953887]
[1729456505372,0.29774471,68688.0,68687.0,1.51953887]
[1729456506262,0.25405178,68688.0,68687.0,1.51953887]
[1729456506734,0.00846678,68688.0,68687.0,1.76329802]
[1729456506973,0.00846678,68688.0,68687.0,1.9351038]
[1729456507260,0.000828,68691.0,68690.0,0.326109]
[1729456507504,0.000925,68700.0,68699.0,0.145562]
[1729456507726,0.000925,68700.0,68699.0,1.764101]
[1729456508155,0.000925,68700.0,68699.0,1.7869912]
[1729456508380,0.000925,68700.0,68699.0,1.80117266]
[1729456508623,0.000925,68700.0,68699.0,1.81523404]
[1729456508835,0.000925,68700.0,68699.0,1.81823404]
[1729456509266,0.000925,68700.0,68699.0,1.82323404]
[1729456509525,0.0182203,68705.0,68699.0,1.82323404]
[1729456509526,0.0157203,68705.0,68704.0,0.331079]
[1729456509746,0.24718488,68709.0,68708.0,0.180528]
[1729456509961,0.000825,68713.0,68712.0,0.005]
[1729456510176,0.000825,68713.0,68712.0,1.94839281]
[1729456510428,0.000825,68725.0,68724.0,0.331037]
[1729456510641,0.000825,68725.0,68724.0,1.762237]
[1729456510887,0.000825,68725.0,68724.0,1.79930866]
[1729456511185,0.000825,68725.0,68724.0,1.96370681]
[1729456511653,0.000825,68725.0,68724.0,1.62260029]
[1729456511864,0.000825,68725.0,68724.0,1.76810929]
[1729456512129,0.000825,68725.0,68724.0,1.92199007]
[1729456512367,0.000825,68725.0,68724.0,1.91119615]
[1729456512607,0.000825,68725.0,68724.0,1.91419615]
[1729456512833,0.000825,68725.0,68724.0,1.99865089]
[1729456513264,0.000825,68725.0,68724.0,1.99863861]
[1729456513504,0.000825,68725.0,68724.0,1.99085687]
[1729456514152,0.000825,68725.0,68724.0,2.00162825]
[1729456514340,0.000825,68725.0,68724.0,1.99085687]
[1729456514815,0.000825,68725.0,68724.0,1.98785687]
[1729456516151,0.000825,68725.0,68724.0,1.99085687]
[1729456516367,0.000825,68725.0,68724.0,1.98785687]
[1729456516585,0.000825,68725.0,68724.0,1.98485687]
[1729456516807,0.000825,68725.0,68724.0,1.99085687]
[1729456519915,0.000825,68725.0,68724.0,2.00159734]
[1729456520127,0.000824,68742.0,68732.0,0.18232]
[1729456520368,0.19847061,68745.0,68743.0,0.159297]
[1729456520601,0.19847061,68745.0,68743.0,1.91105615]
[1729456520806,0.19847061,68745.0,68743.0,1.92178314]
[1729456522329,0.19847061,68745.0,68743.0,1.92478314]
[1729456522582,0.19847061,68745.0,68743.0,1.99544386]
[1729456522791,0.19847061,68745.0,68743.0,2.00144386]
[1729456522999,0.19847061,68745.0,68743.0,1.99071687]
[1729456523250,0.19847061,68745.0,68743.0,1.83724787]
[1729456523455,0.19847061,68745.0,68743.0,1.6088]
[1729456523456,0.146291,68744.0,68743.0,1.6088]
[1729456523887,0.146291,68744.0,68743.0,1.617628]
[1729456524318,0.146291,68744.0,68743.0,1.614628]
[1729456524574,0.000824,68744.0,68743.0,1.76358715]
[1729456524796,0.000824,68744.0,68743.0,1.76658715]
[1729456525072,0.000824,68744.0,68743.0,1.760097]
[1729456525307,0.000824,68744.0,68743.0,1.91105615]
[1729456525722,0.000824,68744.0,68743.0,1.92176783]
[1729456525931,0.000824,68744.0,68743.0,1.92476783]
[1729456526349,0.000824,68744.0,68743.0,1.92176783]
[1729456526571,0.000824,68744.0,68743.0,1.92476783]
[1729456526745,0.000824,68744.0,68743.0,1.91705615]
[1729456527003,0.000824,68744.0,68743.0,2.07672712]
[1729456527421,0.000824,68744.0,68743.0,1.87672712]
[1729456527903,0.000824,68744.0,68743.0,1.87372712]
[1729456528584,0.000824,68744.0,68743.0,1.72776797]
[1729456529227,0.000824,68744.0,68743.0,1.72476797]
[1729456529448,0.000824,68744.0,68743.0,1.72176797]
[1729456529658,0.000824,68744.0,68743.0,1.72476797]
[1729456529865,0.000824,68744.0,68743.0,1.72776797]
[1729456530717,0.000824,68744.0,68743.0,1.72476797]
[1729456531145,0.000824,68744.0,68743.0,1.72776797]
[1729456531360,0.000824,68744.0,68743.0,1.72476797]
[1729456531538,0.000824,68744.0,68743.0,1.72776797]
[1729456532224,0.000824,68744.0,68743.0,1.87372712]
[1729456532708,0.000824,68744.0,68743.0,1.87672712]
[1729456533397,0.000824,68744.0,68743.0,1.88542565]
[1729456533623,0.000824,68744.0,68743.0,1.87471383]
[1729456533865,0.000824,68744.0,68743.0,1.88245484]
[1729456534076,0.000824,68744.0,68743.0,1.88545484]
[1729456534515,0.000824,68744.0,68743.0,1.88245484]
[1729456534735,0.000824,68744.0,68743.0,1.88545484]
[1729456534987,0.000824,68744.0,68743.0,1.87945484]
[1729456535185,0.000824,68744.0,68743.0,1.73049569]
[1729456535440,0.000824,68744.0,68743.0,1.73649569]
[1729456535897,0.000824,68744.0,68743.0,1.73349569]
[1729456536112,0.000824,68744.0,68743.0,1.73649569]
[1729456536327,0.000824,68744.0,68743.0,1.88545484]
[1729456536965,0.000824,68744.0,68743.0,1.73649569]
[1729456537182,0.000824,68744.0,68743.0,1.73349569]
[1729456537396,0.000824,68744.0,68743.0,1.73652964]
[1729456537629,0.000824,68744.0,68743.0,1.73352964]
[1729456537886,0.000824,68744.0,68743.0,1.71978863]
[1729456538089,0.000824,68744.0,68743.0,1.73657208]
[1729456538537,0.000824,68744.0,68743.0,1.73822808]
[1729456538722,0.000824,68744.0,68743.0,1.73522808]
[1729456538958,0.000824,68744.0,68743.0,1.73822808]
[1729456541131,0.000824,68744.0,68743.0,1.7382478]
[1729456541363,0.000824,68744.0,68743.0,1.73827185]
[1729456541851,0.18069461,68745.0,68743.0,1.59280285]
[1729456542079,0.18069461,68745.0,68744.0,0.32281385]
[1729456542316,0.18069461,68745.0,68744.0,1.78221385]
[1729456542537,0.18069461,68745.0,68744.0,1.931173]
[1729456544270,0.18069461,68745.0,68744.0,1.934173]
[1729456544663,0.18069461,68745.0,68744.0,1.4907877]
[1729456544901,0.18069461,68745.0,68744.0,1.6362547]
[1729456545319,0.18069461,68745.0,68744.0,1.6275025]
[1729456545541,0.18069461,68745.0,68744.0,1.64914385]
[1729456545767,0.19019427,68745.0,68744.0,1.64914385]
[1729456546602,0.18069461,68745.0,68744.0,1.65214385]
[1729456546814,0.18069461,68745.0,68744.0,1.64914385]
[1729456548144,0.18069461,68745.0,68744.0,1.65214385]
[1729456548594,0.18069461,68745.0,68744.0,1.619695]
[1729456548834,0.18069461,68745.0,68744.0,1.65219557]
[1729456549084,0.18069461,68745.0,68744.0,1.80115496]
[1729456549310,0.18069461,68745.0,68744.0,1.65219581]
[1729456549528,0.18069461,68745.0,68744.0,1.65219593]
[1729456550732,0.18069461,68745.0,68744.0,1.65385193]
[1729456550977,0.18152261,68745.0,68744.0,1.65385193]
[1729456552633,0.18152261,68745.0,68744.0,1.65387989]
[1729456553712,0.18152261,68745.0,68744.0,1.64505189]
[1729456553925,0.18152261,68745.0,68744.0,1.65387989]
[1729456555005,0.18152261,68745.0,68744.0,1.80283904]
[1729456555227,0.18152261,68745.0,68744.0,1.88583904]
[1729456556376,0.18152261,68745.0,68744.0,1.73687989]
[1729456556657,0.18152261,68745.0,68744.0,1.73687739]
[1729456557567,0.18152261,68745.0,68744.0,1.98313654]
[1729456558522,0.18152261,68745.0,68744.0,1.98013654]
[1729456559587,0.18152261,68745.0,68744.0,1.99191473]
[1729456559796,0.18152261,68745.0,68744.0,1.98891473]
[1729456560006,0.18152261,68745.0,68744.0,2.13787388]
[1729456560213,0.18152261,68745.0,68744.0,2.14087406]
[1729456560446,0.18152261,68745.0,68744.0,2.14087396]
[1729456560676,0.001,68750.0,68744.0,2.14087396]
[1729456560677,0.001,68750.0,68749.0,0.367584]
[1729456560895,0.001,68750.0,68749.0,2.05955714]
[1729456561130,0.001,68750.0,68749.0,2.17858241]
[1729456561609,0.001,68750.0,68749.0,2.26978303]
[1729456561838,0.001,68750.0,68749.0,2.29143074]
[1729456562048,0.001,68750.0,68749.0,2.29443074]
[1729456562265,0.001,68750.0,68749.0,2.18629773]
[1729456562712,0.001,68750.0,68749.0,2.19005565]
[1729456563563,0.001,68750.0,68749.0,2.18129773]
[1729456563778,0.001,68750.0,68749.0,2.24914602]
[1729456564497,0.001,68750.0,68749.0,2.18429773]
[1729456564680,0.001,68750.0,68749.0,2.18129773]
[1729456564944,0.001,68750.0,68749.0,2.18729773]
[1729456565423,0.001,68750.0,68749.0,2.18429773]
[1729456566136,0.001,68750.0,68749.0,2.18129773]
[1729456566371,0.001,68750.0,68749.0,2.18429773]
[1729456566601,0.001,68750.0,68749.0,2.18729773]
[1729456566835,0.001,68750.0,68749.0,2.18429773]
[1729456567315,0.001,68750.0,68749.0,2.18729773]
[1729456567550,0.001,68750.0,68749.0,2.18429773]
[1729456567783,0.001,68750.0,68749.0,2.18729773]
[1729456568015,0.001,68750.0,68749.0,2.18429773]
[1729456568471,0.001,68750.0,68749.0,2.18729773]
[1729456568918,0.001,68750.0,68749.0,2.18429773]
[1729456569599,0.001,68750.0,68749.0,2.16129773]
[1729456569819,0.001,68750.0,68749.0,2.16429773]
[1729456570298,0.001,68750.0,68749.0,2.15338099]
[1729456570560,0.001,68750.0,68749.0,2.16418205]
[1729456570793,0.001,68750.0,68749.0,1.98604345]
[1729456571008,0.001,68750.0,68749.0,1.98304345]
[1729456571218,0.001,68750.0,68749.0,1.98604345]
[1729456571441,0.001,68750.0,68749.0,1.98904345]
[1729456571653,0.001,68750.0,68749.0,1.7334096]
[1729456571926,0.001,68750.0,68749.0,1.7552654]
[1729456572155,0.001,68750.0,68749.0,1.7602654]
[1729456572400,0.001,68750.0,68749.0,1.7522654]
[1729456572610,0.001,68750.0,68749.0,1.7542654]
[1729456572823,0.001,68750.0,68749.0,1.7522654]
[1729456573308,0.001,68750.0,68749.0,1.60030625]
[1729456573531,0.001,68750.0,68749.0,1.60330625]
[1729456573754,0.001828,68750.0,68749.0,1.60630625]
[1729456574661,0.001828,68750.0,68749.0,1.60330625]
[1729456575099,0.001828,68750.0,68749.0,1.60630625]
[1729456575555,0.001828,68750.0,68749.0,1.60330625]
[1729456576006,0.001828,68750.0,68749.0,1.60030625]
[1729456576237,0.001828,68750.0,68749.0,1.60330625]
[1729456576460,0.001828,68750.0,68749.0,1.60030625]
[1729456576916,0.001828,68750.0,68749.0,1.60330625]
[1729456577564,0.001828,68750.0,68749.0,1.60630625]
[1729456577796,0.001828,68750.0,68749.0,1.59550615]
[1729456578007,0.001828,68750.0,68749.0,1.60631374]
[1729456578228,0.001828,68750.0,68749.0,1.60331374]
[1729456578691,0.001828,68750.0,68749.0,1.60631374]
[1729456579110,0.001828,68750.0,68749.0,1.60031374]
[1729456579330,0.001828,68750.0,68749.0,1.60631374]
[1729456579765,0.001828,68750.0,68749.0,1.45785774]
[1729456580407,0.01134327,68750.0,68749.0,1.46085774]
[1729456580837,0.01134327,68750.0,68749.0,1.45785774]
[1729456581924,0.01134327,68750.0,68749.0,1.45485774]
[1729456582140,0.23819727,68750.0,68749.0,1.45485774]
[1729456582350,0.23819727,68750.0,68749.0,1.44405015]
[1729456582804,0.228682,68750.0,68749.0,1.44405015]
[1729456583034,0.23818566,68750.0,68749.0,1.34405015]
[1729456585203,0.23818566,68750.0,68749.0,1.34570615]
[1729456585454,0.228682,68750.0,68749.0,1.34570615]
[1729456585926,0.23818543,68750.0,68749.0,1.34570615]
[1729456586401,0.228682,68750.0,68749.0,1.34570615]
[1729456586631,0.23818543,68750.0,68749.0,1.34570615]
[1729456586855,0.09273143,68750.0,68749.0,1.34570615]
[1729456587142,0.23818543,68750.0,68749.0,1.34570615]
[1729456587818,0.09273143,68750.0,68749.0,1.34570615]
[1729456588242,0.23818543,68750.0,68749.0,1.34570615]
[1729456589511,0.09273143,68750.0,68749.0,1.34570615]
[1729456589920,0.23818543,68750.0,68749.0,1.34570615]
[1729456590132,0.09273143,68750.0,68749.0,1.34570615]
[1729456591660,0.005,68762.0,68749.0,1.34570615]
[1729456591883,0.14895915,68759.0,68750.0,0.21846622]
[1729456592098,0.145451,68752.0,68751.0,1.5747]
[1729456592540,0.14544,68757.0,68751.0,1.5747]
[1729456592761,0.14895915,68756.0,68751.0,1.5747]
[1729456593639,0.29440115,68756.0,68751.0,1.5747]
[1729456593867,0.14895915,68756.0,68751.0,1.5747]
[1729456594322,0.29440115,68756.0,68751.0,1.5747]
[1729456594545,0.14895915,68756.0,68751.0,1.5747]
[1729456595264,0.16256181,68756.0,68751.0,1.5747]
[1729456595478,0.30800381,68756.0,68751.0,1.5747]
[1729456595704,0.14895915,68756.0,68751.0,1.5747]
[1729456596380,0.16256348,68756.0,68751.0,1.5747]
[1729456597082,0.30800548,68756.0,68751.0,1.5747]
[1729456597292,0.01360433,68755.0,68751.0,1.5747]
[1729456597511,0.14895915,68754.0,68751.0,1.5747]
[1729456598399,0.14545,68752.0,68751.0,1.5747]
[1729456598627,0.14895915,68754.0,68751.0,1.5747]
[1729456598628,0.01360652,68753.0,68751.0,1.5747]
[1729456598858,0.30801167,68754.0,68751.0,1.5747]
[1729456599070,0.01360652,68753.0,68751.0,1.5747]
[1729456599281,0.02274275,68753.0,68751.0,1.5747]
[1729456599458,0.00913623,68753.0,68751.0,1.5747]
[1729456604568,0.00913623,68753.0,68752.0,0.01083643]
[1729456604778,0.00913623,68753.0,68752.0,1.5747]
[1729456605191,0.00913623,68753.0,68752.0,1.58553742]
[1729456605824,0.00913623,68753.0,68752.0,1.5747]
[1729456606073,0.00913623,68753.0,68752.0,1.5855377]
[1729456606254,0.00913623,68753.0,68752.0,1.58554004]
[1729456606685,0.01362305,68753.0,68752.0,1.58554004]
[1729456606919,0.02275949,68753.0,68752.0,1.58554004]
[1729456607135,0.00913644,68753.0,68752.0,1.5747]
[1729456607369,0.00913644,68753.0,68752.0,1.58554208]
[1729456607583,0.00913644,68753.0,68752.0,1.5747]
[1729456607794,0.00913644,68753.0,68752.0,1.58554231]
[1729456607980,0.02275949,68753.0,68752.0,1.58554231]
[1729456609507,0.59286664,68753.0,68752.0,1.58554231]
[1729456609712,0.59286664,68753.0,68752.0,1.5747]
[1729456610056,0.59286664,68753.0,68752.0,1.576354]
[1729456611077,0.59287956,68753.0,68752.0,1.576354]
[1729456611506,0.59287956,68753.0,68752.0,1.578354]
[1729456611836,0.59287956,68753.0,68752.0,1.577354]
[1729456613414,0.59687956,68753.0,68752.0,1.578354]
[1729456614842,0.59687079,68753.0,68752.0,1.578354]
[1729456622709,0.64040804,68753.0,68752.0,1.578354]
[1729456623131,0.59687079,68753.0,68752.0,1.578354]
[1729456623547,0.64040804,68753.0,68752.0,1.578354]
[1729456623758,0.49847079,68753.0,68752.0,1.578354]
[1729456624803,0.54200804,68753.0,68752.0,1.578354]
[1729456625017,0.49847079,68753.0,68752.0,1.578354]
[1729456625259,0.64742994,68753.0,68752.0,1.578354]
[1729456625426,0.69096719,68753.0,68752.0,1.578354]
[1729456626662,0.54200804,68753.0,68752.0,1.578354]
[1729456627699,0.49847079,68753.0,68752.0,1.578354]
[1729456628518,0.42117079,68753.0,68752.0,1.578354]
[1729456631817,0.40754359,68753.0,68752.0,1.578354]
[1729456632031,0.42116434,68753.0,68752.0,1.578354]
[1729456633970,0.82743296,68753.0,68752.0,1.578354]
[1729456634198,0.79623265,68753.0,68752.0,1.578354]
[1729456634831,0.79623265,68753.0,68752.0,1.577354]
[1729456635054,0.7786119,68753.0,68752.0,1.576354]
[1729456635262,0.7786119,68753.0,68752.0,1.577354]
[1729456635263,0.87958449,68753.0,68752.0,1.577354]
[1729456635461,0.89358449,68753.0,68752.0,1.577354]
[1729456635796,0.87958449,68753.0,68752.0,1.577354]
[1729456636362,0.89358449,68753.0,68752.0,1.578354]
[1729456636712,0.93690677,68753.0,68752.0,1.578354]
[1729456636912,3.65813977,68753.0,68752.0,1.578354]
[1729456637134,3.65813977,68753.0,68752.0,1.549264]
[1729456637135,3.9008519,68753.0,68752.0,1.549264]
[1729456637294,3.3517409,68753.0,68752.0,1.549264]
[1729456637678,3.3517409,68753.0,68752.0,1e-06]
[1729456637867,0.145471,68742.0,68741.0,0.21307822]
[1729456638075,0.4848693,68742.0,68741.0,0.21307822]
[1729456638277,0.65614291,68742.0,68741.0,0.21307822]
[1729456638625,0.245488,68734.0,68713.0,0.006656]
[1729456638910,0.39444715,68734.0,68716.0,0.005]
[1729456639113,0.40356492,68734.0,68716.0,0.005]
[1729456639317,0.1,68733.0,68716.0,0.005]
[1729456639457,0.15807692,68734.0,68713.0,0.016656]
[1729456639458,0.245503,68727.0,68713.0,0.016656]
[1729456639664,0.39446215,68727.0,68715.0,0.005]
[1729456639873,0.39446215,68727.0,68713.0,0.016656]
[1729456639874,0.40357778,68727.0,68713.0,0.016656]
[1729456640073,0.145509,68724.0,68713.0,0.016656]
[1729456640346,0.29446815,68724.0,68713.0,0.016656]
[1729456640544,0.30358299,68724.0,68713.0,0.016656]
[1729456641557,0.30858299,68724.0,68723.0,0.1741]
[1729456642402,0.31358299,68724.0,68723.0,0.1741]
[1729456645486,0.31358299,68724.0,68723.0,0.175756]
[1729456649797,0.31358299,68724.0,68723.0,0.002656]
[1729456657438,0.16807399,68724.0,68723.0,0.195556]
[1729456657646,0.16807399,68724.0,68723.0,0.193556]
[1729456658106,0.31358299,68724.0,68723.0,0.193556]
[1729456658324,0.16807399,68724.0,68723.0,0.195556]
[1729456658541,0.16807399,68724.0,68723.0,0.193556]
[1729456659986,0.31358299,68724.0,68723.0,0.193556]
[1729456660224,0.31358299,68724.0,68723.0,0.195556]
[1729456660895,0.31358299,68724.0,68723.0,0.193556]
[1729456661740,0.31358299,68724.0,68723.0,0.630086]
[1729456663996,0.31358299,68724.0,68723.0,0.64093657]
[1729456664860,0.31358299,68724.0,68723.0,0.64093867]
[1729456665308,0.31358299,68724.0,68723.0,0.65093867]
[1729456666826,0.31358299,68724.0,68723.0,0.640086]
[1729456667074,0.31358299,68724.0,68723.0,0.65094323]
[1729456671119,0.31358299,68724.0,68723.0,0.46004323]
[1729456671339,0.31358299,68724.0,68723.0,0.449186]
[1729456672907,0.33636459,68724.0,68723.0,0.449186]
[1729456684723,0.33636459,68724.0,68723.0,0.630586]
[1729456688328,0.33636459,68724.0,68723.0,0.64144226]
[1729456688535,0.33636459,68724.0,68723.0,0.64344226]
[1729456689370,0.33636459,68724.0,68723.0,0.630586]
[1729456694909,0.33636459,68724.0,68723.0,0.64144197]
[1729456695251,0.33636459,68724.0,68723.0,0.64344197]
[1729456695923,0.04189644,68724.0,68723.0,0.64344197]
[1729456696158,0.04189644,68724.0,68723.0,0.65722095]
[1729456696577,0.01,68724.0,68723.0,0.65722095]
[1729456697017,0.01881072,68724.0,68723.0,0.65522095]
[1729456697227,0.01881072,68724.0,68723.0,0.65722095]
[1729456699222,0.16431972,68724.0,68723.0,0.65722095]
[1729456700991,0.16431972,68724.0,68723.0,0.65522095]
[1729456701576,0.16431972,68724.0,68723.0,0.64644197]
[1729456701832,0.16431972,68724.0,68723.0,0.635586]
[1729456702039,0.16431972,68724.0,68723.0,0.6484332]
[1729456704666,0.16431972,68724.0,68723.0,0.637586]
[1729456704910,0.16431972,68724.0,68723.0,0.64843244]
[1729456705243,0.16431972,68724.0,68723.0,0.64643244]
[1729456706064,0.16431972,68724.0,68723.0,0.635586]
[1729456706702,0.16431972,68724.0,68723.0,0.64643279]
[1729456706900,0.16431972,68724.0,68723.0,0.64843279]
[1729456709063,0.16431972,68724.0,68723.0,0.637586]
[1729456709277,0.16431972,68724.0,68723.0,0.64843322]
[1729456709527,0.16431972,68724.0,68723.0,0.64635924]
[1729456709993,0.16431972,68724.0,68723.0,0.65720739]
[1729456711623,0.16431972,68724.0,68723.0,0.74021595]
[1729456712176,0.16431972,68724.0,68723.0,0.7402158]
[1729456712614,0.16431972,68724.0,68723.0,0.65720724]
[1729456715622,0.16431972,68724.0,68723.0,0.65721017]
[1729456719084,0.16431972,68724.0,68723.0,0.64843693]
[1729456719313,0.16431972,68724.0,68723.0,0.64436413]
[1729456719520,0.16431972,68724.0,68723.0,0.65721738]
[1729456719737,0.16431972,68724.0,68723.0,0.64636413]
[1729456720410,0.16431972,68724.0,68723.0,0.65721796]
[1729456722673,0.16431972,68724.0,68723.0,0.64843983]
[1729456722969,0.16431972,68724.0,68723.0,0.64636679]
[1729456723291,0.16431972,68724.0,68723.0,0.65522337]
[1729456723461,0.16431972,68724.0,68723.0,0.65722337]
[1729456723718,0.16431972,68724.0,68723.0,0.67459642]
[1729456726566,0.16431972,68724.0,68723.0,0.65522995]
[1729456727002,0.16431972,68724.0,68723.0,0.65722995]
[1729456727641,0.16431972,68724.0,68723.0,0.65522995]
[1729456728309,0.16431972,68724.0,68723.0,0.65722995]
[1729456730073,0.16431972,68724.0,68723.0,0.65522995]
[1729456730295,0.16431972,68724.0,68723.0,0.65523522]
[1729456730518,0.16431972,68724.0,68723.0,0.64644904]
[1729456730739,0.16431972,68724.0,68723.0,0.64637207]
[1729456730917,0.16431972,68724.0,68723.0,0.6552351]
[1729456733833,0.16431972,68724.0,68723.0,0.64644903]
[1729456734039,0.16431972,68724.0,68723.0,0.65523502]
[1729456734277,0.16431972,68724.0,68723.0,0.65723502]
[1729456735925,0.16431972,68724.0,68723.0,0.65523502]
[1729456736136,0.16431972,68724.0,68723.0,0.65723502]
[1729456736844,0.16431972,68724.0,68723.0,0.65523502]
[1729456737108,0.16431972,68724.0,68723.0,0.65723502]
[1729456737762,0.16431972,68724.0,68723.0,0.65523481]